bitfinex-derivatives/quotes_SOLF0:USTF0_20250714
["timestamp","ask_amount","ask_price","bid_price","bid_amount"]
[1752531086881,384.86,162.13,162.11,367.61242921]
[1752531087088,384.86,162.13,162.12,3.36]
[1752531087393,206.0,162.13,162.12,3.36]
[1752531089392,212.1669,162.13,162.12,3.36]
[1752531089797,206.0,162.13,162.12,9.5273]
[1752531091194,206.0,162.13,162.12,3.36]
[1752531091991,9.4568,162.14,162.12,3.36]
[1752531092693,9.4571,162.13,162.12,3.36]
[1752531092997,3.29,162.12,162.11,364.25242921]
[1752531093200,215.4573,162.12,162.11,364.25242921]
[1752531094996,215.4573,162.12,162.11,367.61242921]
[1752531095197,212.1673,162.12,162.11,367.61242921]
[1752531095501,215.4573,162.12,162.11,364.25242921]
[1752531095698,215.4573,162.12,162.11,367.61242921]
[1752531097599,215.4573,162.12,162.11,364.25242921]
[1752531097997,218.80731095,162.12,162.11,364.25242921]
[1752531102701,223.95557648,162.12,162.11,354.65952921]
[1752531103302,218.80731095,162.12,162.11,354.65952921]
[1752531103701,12.80731095,162.12,162.11,354.65952921]
[1752531107608,17.95557648,162.12,162.11,354.65952921]
[1752531109206,12.80731095,162.12,162.11,354.65952921]
[1752531109605,12.80731095,162.12,162.11,358.01952921]
[1752531111506,6.1673,162.12,162.11,358.01952921]
[1752531111812,185.0073,162.12,162.11,358.01952921]
[1752531113208,6.1673,162.12,162.11,358.01952921]
[1752531114011,6.1673,162.12,162.11,536.85952921]
[1752531114411,9.4573,162.12,162.11,358.01952921]
[1752531114611,188.2773,162.12,162.11,354.65952921]
[1752531115407,188.2773,162.12,162.11,358.22952921]
[1752531121116,184.9873,162.12,162.11,358.22952921]
[1752531121416,0.04444559,162.13,162.12,3.57]
[1752531121817,0.04444559,162.13,162.12,191.88617565]
[1752531122116,0.04444559,162.13,162.12,188.5373]
[1752531123614,5.14826553,162.18,162.13,3.57]
[1752531123819,3.29,162.19,162.15,3.57]
[1752531124018,3.29,162.19,162.16,178.78]
[1752531124321,6.1653,162.18,162.17,3.57]
[1752531125813,388.07,162.2,162.17,3.57]
[1752531125814,384.78,162.2,162.17,3.57]
[1752531126322,3.34673146,162.23,162.11,354.65952921]
[1752531126323,6.1633,162.23,162.2,3.57]
[1752531126522,178.78,162.26,162.22,3.57]
[1752531126724,182.07,162.26,162.22,3.57]
[1752531127320,182.07,162.26,162.22,3.61508149]
[1752531127520,3.29,162.25,162.22,3.61508149]
[1752531128419,178.78,162.26,162.22,3.61508149]
[1752531128622,3.29,162.24,162.22,3.61508149]
[1752531129427,3.29,162.28,162.22,3.61508149]
[1752531129624,6.163,162.24,162.23,3.57]
[1752531129826,3.29,162.24,162.22,0.04508149]
[1752531130025,6.63673146,162.23,162.22,0.04508149]
[1752531130228,12.79983146,162.23,162.22,0.04508149]
[1752531131024,6.1646,162.19,162.18,3.57]
[1752531131228,9.4546,162.19,162.18,3.57]
[1752531131424,6.1646,162.19,162.18,3.57]
[1752531132629,0.04393607,162.2,162.18,3.57]
[1752531133130,0.04393607,162.2,162.18,9.735]
[1752531133331,0.04393607,162.2,162.18,3.57]
[1752531134734,0.04393607,162.2,162.18,9.735]
[1752531135032,0.04393607,162.2,162.18,6.165]
[1752531135228,0.04393607,162.2,162.19,3.57]
[1752531139238,6.20823607,162.2,162.19,3.57]
[1752531140738,6.1652,162.18,162.12,3.57]
[1752531140939,6.1652,162.18,162.13,3.57]
[1752531141232,3.34673146,162.19,162.13,3.57]
[1752531141436,3.29,162.2,162.13,6.91673146]
[1752531141636,0.04213901,162.17,162.14,3.57]
[1752531141843,0.04213901,162.17,162.16,3.57]
[1752531143146,6.20753901,162.17,162.16,3.57]
[1752531143836,9.49753901,162.17,162.16,3.57]
[1752531144443,6.20753901,162.17,162.16,3.57]
[1752531144644,12.84427047,162.17,162.16,3.57]
[1752531144840,6.1666,162.14,162.11,360.82702921]
[1752531145044,3.3,162.14,162.12,3.62]
[1752531145847,6.1668,162.14,162.12,9.7872]
[1752531146148,3.34673146,162.15,162.13,3.62]
[1752531146347,9.51313146,162.15,162.13,3.62]
[1752531146940,206.04213901,162.17,162.12,3.62]
[1752531147149,212.68887047,162.17,162.12,3.62]
[1752531147341,3.3,162.16,162.12,3.62]
[1752531147546,9.4659,162.16,162.14,3.62]
[1752531147744,206.04213901,162.17,162.14,3.62]
[1752531148239,0.04213901,162.17,162.14,3.62]
[1752531148945,6.20773901,162.17,162.14,9.7863]
[1752531149247,6.20773901,162.17,162.15,3.62]
[1752531150547,6.1658,162.16,162.15,3.62]
[1752531151247,9.4658,162.16,162.15,3.62]
[1752531152650,6.1658,162.16,162.15,3.62]
[1752531154250,6.1658,162.16,162.11,354.65952921]
[1752531154251,3.34673146,162.16,162.11,354.65952921]
[1752531154453,6.64673146,162.14,162.13,3.62]
[1752531154750,3.3,162.13,162.12,3.62]
[1752531154947,9.4672,162.13,162.12,3.62]
[1752531155146,3.3,162.13,162.11,354.65952921]
[1752531155345,6.64673146,162.12,162.11,354.65952921]
[1752531155545,12.81403146,162.12,162.11,354.65952921]
[1752531156153,191.57403146,162.12,162.11,168.29305036]
[1752531156355,191.57403146,162.12,162.11,147.84815036]
[1752531156557,191.57403146,162.12,162.11,125.22765036]
[1752531156748,191.57403146,162.12,162.11,115.94055036]
[1752531159260,9.4684,162.09,162.08,3.62]
[1752531159757,12.81513146,162.09,162.08,3.62]
[1752531161460,6.64673146,162.09,162.08,3.62]
[1752531161758,3.34673146,162.09,162.08,3.62]
[1752531162356,209.34673146,162.11,162.08,3.62]
[1752531162562,206.0,162.11,162.08,3.62]
[1752531162859,212.1678,162.11,162.08,9.7886]
[1752531163055,209.3,162.11,162.07,3.62]
[1752531163857,206.0,162.11,162.08,3.62]
[1752531164060,3.3,162.1,162.09,3.62]
[1752531164359,3.3,162.1,162.03,3.62]
[1752531164554,3.3,162.1,162.04,3.34673146]
[1752531164751,3.3,162.1,162.05,3.62]
[1752531164957,3.3,162.09,162.06,3.62]
[1752531165261,3.34358482,162.09,162.06,3.62]
[1752531165456,6.1692,162.08,162.06,3.62]
[1752531168860,6.1692,162.07,162.06,3.62]
[1752531169755,6.17,162.05,162.04,3.62]
[1752531170059,3.29,162.07,162.04,3.62]
[1752531170859,6.1698,162.06,162.04,3.62]
[1752531172862,9.46,162.05,162.04,3.62]
[1752531174158,206.0,162.08,162.04,3.62]
[1752531174362,209.29,162.08,162.04,3.62]
[1752531174759,6.1694,162.07,162.04,9.7901]
[1752531175162,6.1694,162.07,162.05,3.68]
[1752531177267,209.29,162.08,162.05,3.68]
[1752531177268,212.1689,162.08,162.06,6.1696]
[1752531177467,212.1689,162.08,162.07,3.68]
[1752531177662,215.4589,162.08,162.07,3.68]
[1752531181560,394.2789,162.08,162.07,3.68]
[1752531182263,394.2789,162.08,162.04,6.1702]
[1752531182264,384.82,162.08,162.02,6.1707]
[1752531182473,3.29,162.06,161.99,120.97987604]
[1752531182660,3.29,162.04,162.0,3.68]
[1752531182967,178.82,162.05,162.0,3.68]
[1752531182968,6.1713,162.02,162.0,3.68]
[1752531183174,3.29,162.03,162.0,3.68]
[1752531183366,6.1709,162.03,162.01,6.1712]
[1752531183566,6.1709,162.03,162.0,3.68]
[1752531183567,182.11,162.03,162.0,3.68]
[1752531185170,178.82,162.03,162.0,3.68]
[1752531185572,206.03992987,162.04,162.0,3.68]
[1752531185772,384.85992987,162.04,162.0,3.68]
[1752531186072,3.29,162.03,162.0,3.68]
[1752531186268,6.1711,162.02,162.0,3.68]
[1752531187171,6.1715,162.01,162.0,3.68]
[1752531187368,3.29,162.02,162.0,3.68]
[1752531187973,9.4613,162.02,162.0,3.68]
[1752531188772,6.1709,162.03,162.01,3.68]
[1752531189271,394.32042987,162.04,162.01,3.68]
[1752531189575,388.14992987,162.04,161.99,3.68]
[1752531190673,388.14992987,162.04,162.0,6.1717]
[1752531190975,388.14992987,162.04,162.01,3.68]
[1752531191774,6.1707,162.03,162.01,3.68]
[1752531193778,388.14992987,162.04,161.98,3.34673146]
[1752531193779,6.1711,162.02,161.99,6.1722]
[1752531193974,9.4611,162.02,161.99,6.1722]
[1752531194178,388.14992987,162.04,161.96,182.16673146]
[1752531194473,9.4609,162.03,162.0,3.68]
[1752531194874,3.29,162.03,162.0,3.68]
[1752531195080,6.1712,162.02,162.0,3.68]
[1752531195783,9.4612,162.02,162.0,3.68]
[1752531196179,6.1715,162.01,162.0,3.68]
[1752531197080,9.4615,162.01,162.0,3.68]
[1752531197379,185.0312,162.02,162.0,3.68]
[1752531197679,188.3212,162.02,162.0,3.68]
[1752531197980,209.32992987,162.04,162.0,3.68]
[1752531198182,209.32992987,162.04,162.0,7.02673146]
[1752531198183,206.03992987,162.04,162.0,7.02673146]
[1752531198382,206.03992987,162.04,162.01,3.68]
[1752531198580,212.21052987,162.04,162.01,9.8515]
[1752531198780,209.32992987,162.04,162.02,3.68]
[1752531198981,209.32992987,162.04,162.03,3.68]
[1752531199181,215.50022987,162.04,162.03,3.68]
[1752531201184,212.21022987,162.04,162.03,3.68]
[1752531201583,206.03992987,162.04,162.03,3.68]
[1752531201780,0.03992987,162.04,162.03,9.8507]
[1752531201985,3.29,162.09,162.03,3.68]
[1752531202184,185.0292,162.08,162.03,3.68]
[1752531202681,185.0292,162.08,162.06,3.68]
[1752531202883,188.3192,162.08,162.06,3.68]
[1752531203075,188.3192,162.08,162.07,3.68]
[1752531203975,3.29,162.07,162.02,3.34673146]
[1752531204181,3.29,162.07,162.03,3.68]
[1752531204478,3.29,162.07,162.05,3.68]
[1752531204988,3.29,162.07,162.06,3.5]
[1752531205686,188.3191,162.08,162.06,3.5]
[1752531206783,188.3191,162.08,162.04,6.1702]
[1752531206984,188.3191,162.08,162.07,3.5]
[1752531208988,9.4594,162.07,162.04,6.1702]
[1752531209489,9.4594,162.07,162.06,3.5]
[1752531214091,6.1694,162.07,162.06,3.5]
[1752531216293,178.8,162.09,162.06,3.5]
[1752531216887,188.2587,162.09,162.07,3.5]
[1752531219592,184.9687,162.09,162.07,3.5]
[1752531219794,178.8,162.09,162.07,9.6691]
[1752531219994,178.8,162.09,162.08,3.5]
[1752531220193,178.8,162.09,162.08,9.6688]
[1752531220390,206.0,162.1,162.08,9.6688]
[1752531220391,206.0,162.1,162.09,3.5]
[1752531220797,178.78,162.11,162.09,3.5]
[1752531221900,184.9479,162.11,162.09,3.5]
[1752531222099,178.78,162.11,162.09,3.5]
[1752531222502,182.07,162.11,162.09,3.5]
[1752531222702,188.2379,162.11,162.09,3.5]
[1752531223601,184.9479,162.11,162.09,3.5]
[1752531224406,184.9479,162.11,162.09,9.6684]
[1752531224604,178.78,162.11,162.1,3.5]
[1752531224802,388.05,162.13,162.1,3.5]
[1752531225104,384.76,162.13,162.1,3.5]
[1752531225305,9.4576,162.12,162.1,3.5]
[1752531226299,3.29,162.12,162.09,3.5]
[1752531226503,3.29,162.12,162.1,3.5]
[1752531227408,9.4579,162.11,162.1,3.5]
[1752531228301,9.4583,162.1,162.09,3.5]
[1752531228707,6.1683,162.1,162.09,3.5]
[1752531229108,184.9278,162.11,162.09,9.6684]
[1752531229309,184.9278,162.11,162.1,3.5]
[1752531230011,188.2178,162.11,162.1,3.5]
[1752531230705,178.76,162.11,162.1,3.5]
[1752531234113,178.76,162.11,162.1,9.6681]
[1752531234717,394.1771,162.13,162.11,3.5]
[1752531234915,6.1673,162.12,162.11,3.5]
[1752531236214,9.4673,162.12,162.11,3.5]
[1752531236513,3.34,162.11,162.08,0.03931412]
[1752531236714,3.34,162.1,162.08,0.03931412]
[1752531237212,9.5082,162.1,162.08,6.20791412]
[1752531237405,3.34,162.1,162.08,0.03931412]
[1752531237607,9.5082,162.1,162.08,0.03931412]
[1752531238514,9.5082,162.1,162.09,3.61]
[1752531240119,184.8878,162.11,162.09,3.61]
[1752531240517,182.06,162.11,162.09,3.61]
[1752531240817,6.1681,162.1,162.09,3.61]
[1752531242215,6.1684,162.09,162.08,0.03931412]
[1752531242417,188.2284,162.09,162.08,0.03931412]
[1752531242621,188.2284,162.09,162.08,3.64931412]
[1752531243922,9.5082,162.1,162.08,3.64931412]
[1752531245514,9.5084,162.09,162.08,3.64931412]
[1752531246218,182.06,162.11,162.08,9.81811412]
[1752531246419,178.72,162.11,162.09,3.61]
[1752531247621,206.0,162.12,162.1,6.1681]
[1752531247817,206.0,162.12,162.11,3.61]
[1752531249523,209.34,162.12,162.11,3.61]
[1752531250524,206.0,162.12,162.11,3.61]
[1752531250721,206.0,162.12,162.11,9.7777]
[1752531251025,206.0,162.12,162.11,3.61]
[1752531253519,8.48906807,162.16,162.1,3.34673146]
[1752531253720,182.02,162.16,162.11,3.61]
[1752531254030,3.34,162.15,162.11,3.61]
[1752531254327,6.1666,162.14,162.12,3.61]
[1752531255222,178.68,162.16,162.12,3.61]
[1752531255223,6.1669,162.13,162.12,3.61]
[1752531255428,3.34,162.15,162.12,3.61]
[1752531255822,3.34,162.15,162.12,6.1671]
[1752531256019,182.02,162.16,162.13,3.61]
[1752531256227,5.14906807,162.18,162.13,3.61]
[1752531256523,212.8654241,162.2,162.15,3.61]
[1752531256524,3.34,162.2,162.15,3.61]
[1752531256729,182.0,162.2,162.15,3.61]
[1752531257026,182.0,162.2,162.17,3.61]
[1752531257231,178.66,162.2,162.17,3.61]
[1752531257434,6.1645,162.2,162.18,3.61]
[1752531258528,6.1646,162.19,162.18,3.61]
[1752531261228,3.34,162.21,162.18,3.61]
[1752531261229,6.1644,162.2,162.18,3.61]
[1752531262329,9.5044,162.2,162.18,3.61]
[1752531263331,6.1646,162.19,162.18,3.61]
[1752531263533,3.34,162.2,162.13,3.61]
[1752531263933,6.1649,162.19,162.15,6.1661]
[1752531264233,9.5049,162.19,162.16,3.61]
[1752531264733,6.1643,162.2,162.14,3.34673146]
[1752531264936,182.00673146,162.22,162.16,3.34673146]
[1752531264937,181.99,162.22,162.16,3.34673146]
[1752531265129,181.99,162.22,162.17,3.41]
[1752531265330,3.33,162.21,162.17,3.41]
[1752531266131,9.4941,162.21,162.18,6.1648]
[1752531266433,9.4941,162.21,162.19,3.41]
[1752531269428,3.33,162.21,162.2,3.41]
[1752531269628,9.4937,162.22,162.2,3.41]
[1752531270929,6.1643,162.2,162.16,3.34673146]
[1752531271133,3.33,162.2,162.16,3.34673146]
[1752531271535,3.33,162.2,162.18,6.165]
[1752531271736,3.33,162.2,162.19,3.41]
[1752531273331,3.34673146,162.22,162.13,3.34673146]
[1752531273537,3.33,162.19,162.14,3.41]
[1752531273938,3.33,162.19,162.17,6.1652]
[1752531274141,3.33,162.19,162.18,3.41]
[1752531274946,9.4946,162.19,162.18,3.41]
[1752531277744,6.1653,162.18,162.16,3.41]
[1752531277945,9.4953,162.18,162.16,3.41]
[1752531278143,9.4953,162.18,162.16,6.1657]
[1752531278343,9.4953,162.18,162.17,3.41]
[1752531279246,9.4956,162.17,162.16,3.41]
[1752531283951,6.1652,162.18,162.16,3.41]
[1752531284248,3.33,162.18,162.16,3.41]
[1752531284439,3.33,162.18,162.17,3.41]
[1752531286251,9.495,162.18,162.17,3.41]
[1752531286449,3.33,162.18,162.16,3.41]
[1752531288154,6.1657,162.17,162.16,3.41]
[1752531288353,9.4957,162.17,162.16,3.41]
[1752531289249,6.1657,162.17,162.16,3.41]
[1752531291250,9.4957,162.17,162.16,3.41]
[1752531291651,6.1657,162.17,162.16,3.41]
[1752531294458,6.1652,162.18,162.16,3.41]
[1752531296654,6.1654,162.17,162.16,3.41]
[1752531296856,9.4954,162.17,162.16,3.41]
[1752531301466,6.1654,162.17,162.16,3.41]
[1752531301667,187.00224401,162.19,162.16,3.41]
[1752531301968,214.46224401,162.2,162.16,9.5757]
[1752531302163,214.46224401,162.2,162.17,3.34]
[1752531302363,209.33,162.2,162.17,3.34]
[1752531302660,214.46224401,162.2,162.17,3.34]
[1752531302859,217.29674401,162.2,162.17,9.5052]
[1752531303168,212.1645,162.2,162.18,3.34]
[1752531303663,5.13224401,162.21,162.19,3.34]
[1752531303664,6.1641,162.21,162.19,3.34]
[1752531304460,193.14594401,162.22,162.19,3.34]
[1752531304764,188.0137,162.22,162.19,3.34]
[1752531305453,9.4937,162.22,162.19,3.34]
[1752531305763,211.13224401,162.24,162.2,3.34]
[1752531305962,5.13224401,162.24,162.2,3.34]
[1752531306463,11.29514401,162.24,162.21,6.1636]
[1752531306661,11.29514401,162.24,162.22,3.34]
[1752531307061,6.1631,162.23,162.22,3.34]
[1752531307257,9.4931,162.23,162.22,3.34]
[1752531307663,3.33,162.22,162.18,3.34]
[1752531308062,384.5,162.24,162.18,3.34]
[1752531308365,3.33,162.22,162.18,3.34]
[1752531308564,6.1646,162.2,162.18,3.34]
[1752531309269,6.1646,162.19,162.18,3.34]
[1752531310170,6.1644,162.2,162.18,3.34]
[1752531311672,6.1641,162.21,162.18,9.5049]
[1752531311969,3.33,162.22,162.19,3.34]
[1752531312268,3.33,162.22,162.12,3.34]
[1752531312462,3.33,162.22,162.11,178.5]
[1752531312463,3.33,162.21,162.15,3.34]
[1752531312866,3.34538878,162.19,162.16,3.34]
[1752531313369,6.1654,162.17,162.16,3.34]
[1752531313970,9.4954,162.17,162.16,3.34]
[1752531314671,9.4954,162.17,162.13,3.34]
[1752531314672,6.1665,162.14,162.13,3.34]
[1752531316468,6.1675,162.12,162.11,3.34]
[1752531316668,3.33,162.14,162.11,3.34]
[1752531317860,3.33,162.14,162.1,3.34]
[1752531318060,214.46224401,162.16,162.11,3.34]
[1752531318270,209.33,162.16,162.11,3.34]
[1752531318672,214.46224401,162.16,162.11,3.34]
[1752531318971,6.1667,162.14,162.12,3.34]
[1752531319971,6.1669,162.13,162.12,3.34]
[1752531321973,9.4967,162.14,162.12,3.34]
[1752531322164,6.1667,162.14,162.12,3.34]
[1752531322362,206.0,162.16,162.12,6.68538878]
[1752531322565,206.0,162.16,162.13,3.34]
[1752531322765,5.13224401,162.19,162.15,3.34]
[1752531322967,8.46224401,162.19,162.15,3.34]
[1752531323168,6.1657,162.17,162.15,3.34]
[1752531323974,181.83,162.2,162.15,3.34]
[1752531324177,3.33,162.19,162.15,3.34]
[1752531325172,6.1652,162.18,162.15,3.34]
[1752531326175,6.1652,162.18,162.16,3.37]
[1752531333479,206.0,162.21,162.16,3.37]
[1752531333480,6.1654,162.17,162.16,3.37]
[1752531336185,3.34,162.17,162.13,3.37]
[1752531336482,3.34,162.17,162.14,3.37]
[1752531336987,3.34,162.15,162.09,3.37]
[1752531337284,3.34,162.13,162.09,3.37]
[1752531337485,3.34,162.12,162.09,3.37]
[1752531338177,6.1681,162.1,162.09,3.37]
[1752531338387,3.34,162.1,162.08,3.37]
[1752531338585,3.34,162.09,162.08,3.37]
[1752531339181,9.5084,162.09,162.08,3.37]
[1752531339374,3.34,162.1,162.08,3.37]
[1752531339685,9.5083,162.1,162.08,3.37]
[1752531339983,3.34,162.1,162.08,3.37]
[1752531340182,3.34,162.1,162.09,3.37]
[1752531340584,3.34,162.1,162.07,3.37]
[1752531340785,3.34,162.1,162.05,9.51518878]
[1752531340786,3.34,162.1,162.08,3.37]
[1752531340975,3.34538878,162.11,162.08,3.37]
[1752531340976,6.1684,162.09,162.08,3.37]
[1752531341180,9.5084,162.09,162.08,3.37]
[1752531342381,9.5084,162.09,162.05,6.1698]
[1752531342684,3.34,162.08,162.06,3.37]
[1752531343081,9.5091,162.08,162.06,3.37]
[1752531343380,3.34,162.08,162.07,3.37]
[1752531343586,3.34,162.09,162.08,3.37]
[1752531343790,9.5084,162.09,162.08,3.37]
[1752531344178,3.34,162.09,162.04,3.37]
[1752531344487,3.34,162.08,162.04,3.37]
[1752531345090,9.5089,162.08,162.05,6.1698]
[1752531345278,9.5089,162.08,162.06,3.37]
[1752531345888,3.34,162.08,162.06,6.1694]
[1752531346086,3.34,162.1,162.07,3.37]
[1752531346282,3.34,162.11,162.07,3.37]
[1752531346979,9.5083,162.1,162.07,3.37]
[1752531348981,6.1678,162.11,162.08,3.37]
[1752531349186,206.0,162.12,162.08,3.37]
[1752531349187,209.34,162.12,162.08,3.37]
[1752531349493,3.34,162.11,162.08,3.37]
[1752531350291,9.5077,162.11,162.08,3.37]
[1752531350986,6.1677,162.11,162.08,3.37]
[1752531351494,9.5077,162.11,162.08,3.37]
[1752531352391,6.1677,162.11,162.08,3.37]
[1752531352890,9.5077,162.11,162.08,3.37]
[1752531355596,3.34,162.11,162.08,6.1688]
[1752531355801,3.34,162.11,162.09,3.36]
[1752531356801,9.508,162.11,162.09,3.36]
[1752531357501,6.168,162.11,162.09,3.36]
[1752531358602,6.1681,162.1,162.09,3.36]
[1752531364206,9.5081,162.1,162.09,3.36]
[1752531364804,206.0,162.12,162.06,3.36]
[1752531365107,3.34,162.1,162.07,3.36]
[1752531365311,3.34,162.1,162.08,3.36]
[1752531365810,6.1684,162.09,162.08,3.36]
[1752531366297,9.5084,162.09,162.08,3.36]
[1752531367406,6.1684,162.09,162.08,3.36]
[1752531367803,6.1681,162.1,162.08,3.36]
[1752531368202,206.0,162.11,162.08,9.5287]
[1752531368406,206.0,162.11,162.09,3.36]
[1752531370011,3.34,162.12,162.09,3.36]
[1752531370206,3.34,162.11,162.09,3.36]
[1752531370408,3.34,162.14,162.08,3.36]
[1752531371111,3.34,162.12,162.08,3.36]
[1752531372008,9.5078,162.11,162.08,3.36]
[1752531373011,9.5078,162.11,162.09,3.36]
[1752531373513,6.1678,162.11,162.09,3.36]
[1752531373806,9.5081,162.1,162.09,3.36]
[1752531375507,6.1686,162.09,162.07,3.36]
[1752531375707,9.5086,162.09,162.07,3.36]
[1752531376208,3.34,162.12,162.07,3.36]
[1752531376409,3.34,162.12,162.07,6.1692]
[1752531376601,6.168,162.11,162.08,3.36]
[1752531376801,3.34,162.11,162.08,3.36]
[1752531378413,9.5079,162.11,162.08,3.36]
[1752531379211,9.5074,162.12,162.07,3.36]
[1752531379411,3.34,162.12,162.07,3.36]
[1752531379709,3.34,162.13,162.1,3.36]
[1752531380505,6.1674,162.12,162.1,3.36]
[1752531382009,3.34,162.13,162.1,3.36]
[1752531382215,6.1677,162.11,162.1,3.36]
[1752531383416,9.5077,162.11,162.1,3.36]
[1752531383714,9.5075,162.12,162.1,3.36]
[1752531385918,6.1677,162.11,162.1,3.36]
[1752531386219,3.34,162.12,162.1,3.36]
[1752531386418,9.5075,162.12,162.1,3.36]
[1752531387106,6.1675,162.12,162.1,3.36]
[1752531387512,9.4975,162.12,162.1,3.36]
[1752531388520,6.1675,162.12,162.11,3.37]
[1752531389818,211.14003114,162.18,162.11,2.14293708]
[1752531390014,206.0,162.18,162.17,5.51293708]
[1752531390219,9.4949,162.19,162.18,3.37]
[1752531391919,6.1649,162.19,162.18,3.37]
[1752531392119,9.4949,162.19,162.18,3.37]
[1752531395115,206.0,162.18,162.13,3.37]
[1752531395319,3.34512577,162.14,162.08,3.37]
[1752531395622,3.33,162.13,162.05,3.34512577]
[1752531395823,3.33,162.13,162.1,3.37]
[1752531396214,6.1675,162.12,162.1,3.37]
[1752531396421,9.4975,162.12,162.1,3.37]
[1752531397026,6.1677,162.11,162.1,3.37]
[1752531397222,9.4977,162.11,162.1,3.37]
[1752531399822,3.33,162.11,162.09,3.37]
[1752531400026,3.33,162.11,162.1,3.37]
[1752531400424,3.33,162.11,162.08,3.37]
[1752531401127,3.34512577,162.12,162.03,3.34512577]
[1752531401128,9.4984,162.1,162.09,3.37]
[1752531401430,9.4977,162.11,162.09,3.37]
[1752531402331,3.33,162.1,162.09,3.37]
[1752531403929,9.4981,162.1,162.09,3.37]
[1752531404125,3.33,162.09,162.01,6.71512577]
[1752531404337,3.33,162.07,162.02,3.37]
[1752531404629,3.33,162.06,162.05,3.37]
[1752531404818,3.33,162.06,162.01,3.37]
[1752531405020,9.4997,162.06,162.02,6.1709]
[1752531405327,3.33,162.05,162.01,3.37]
[1752531407027,9.5,162.05,162.01,3.37]
[1752531407433,9.5,162.05,162.01,9.5414]
[1752531407627,3.33,162.03,162.01,3.37]
[1752531407828,3.33,162.07,162.01,3.37]
[1752531408236,3.33,162.07,162.03,6.1707]
[1752531408429,3.33,162.07,162.04,3.37]
[1752531408627,3.33,162.09,162.04,3.37]
[1752531408927,9.4988,162.08,162.06,3.37]
[1752531409139,387.73,162.1,162.06,3.37]
[1752531409436,3.33,162.09,162.06,3.37]
[1752531409641,3.33,162.08,162.06,3.37]
[1752531409842,9.499,162.08,162.04,6.1701]
[1752531410042,9.499,162.08,162.05,3.37]
[1752531411936,6.1686,162.09,162.06,3.37]
[1752531412142,9.4986,162.09,162.06,3.37]
[1752531412339,3.33,162.09,162.06,3.37]
[1752531412639,3.33,162.09,162.07,3.37]
[1752531413136,212.1682,162.1,162.07,3.37]
[1752531413442,215.4982,162.1,162.08,3.37]
[1752531413643,206.0,162.1,162.08,3.37]
[1752531414344,206.0,162.12,162.08,3.37]
[1752531414538,3.33,162.11,162.08,3.37]
[1752531414942,3.33,162.1,162.07,3.34512577]
[1752531415144,3.33,162.09,162.08,3.45]
[1752531415739,9.4984,162.09,162.08,3.45]